[Event "SixDays Budapest January-GM 2023"]
[Site "Budapest"]
[Date "2023.01.24"]
[Round "3.2"]
[White "Hacker, Jonas"]
[Black "Chen, Qi b"]
[Result "0-1"]
[ECO "B31"]
[WhiteElo "2446"]
[BlackElo "2484"]
[Annotator "TA"]
[PlyCount "62"]
[EventDate "2023.01.23"]
[EventType "tourn"]
[EventCountry "HUN"]
[SourceTitle "playchess.com"]
[Source "ChessBase"]
[SourceQuality "1"]
[TimeControl "5400+30"]

{[%evp 13,62,-3,23,11,16,8,19,10,24,31,35,0,45,-110,5,0,28,-170,-178,-286,-280,-281,-282,-301,-306,-281,-300,-291,-302,-294,-301,-294,-301,-381,-369,-354,-356,-385,-363,-386,-380,-370,-371,-399,-372,-437,-437,-437,-430,-593,-577]} 1. e4 {[%emt 0:00:04]} c5 {[%emt 0:00:15]} 2. Nf3 {[%emt 0:00:06]} Nc6 {[%emt 0:00:22]} 3. Bb5 {[%emt 0:00:06]} g6 {[%emt 0:00:20]} 4. O-O {[%emt 0:00:07]} Bg7 {[%emt 0:00:09]} 5. c3 {[%emt 0:00:07]} Nf6 {[%emt 0:00:07]} 6. Re1 {[%emt 0:00:08]} O-O {[%emt 0:00:22]} 7. d4 {[%emt 0:00:07]} Qb6 {[%emt 0:00:56] 7...d5 is a critical line.} (7... d5 $5 {[%cal Rd5e4]}) 8. Bxc6 {[%emt 0:01:05] B31: Sicilian: 2...Nc6 3 Bb5 g6.} dxc6 {[%emt 0:00:07]} 9. h3 {[%emt 0:00:57]} Rd8 {[%emt 0:00:36]} 10. Qc2 {[%emt 0:01:10] The position is equal.} cxd4 {[%emt 0:00:12]} 11. cxd4 {[%emt 0:00:17]} c5 {[%emt 0:00:12] [#]} 12. d5 $146 {[%emt 0:12:57]} ({Predecessor:} 12. dxc5 Qc6 13. Nbd2 Be6 14. Nb3 Rac8 15. Nbd4 Qxc5 16. Qxc5 Rxc5 17. Nxe6 fxe6 18. Be3 {½-½ Harikrishna,P (2716)-Fedoseev,V (2685) ESP-chT Rapid 2022 (6)}) 12... h6 {[%emt 0:31:58]} (12... e6 $5 {[%cal Re6d5]}) 13. Be3 $2 {[%emt 0:08:50] [#]} (13. Nc3 $14 {keeps the upper hand.}) 13... e6 {[%emt 0:16:07]} (13... Nxd5 $1 $17 14. exd5 Qxb2 15. Qxb2 (15. Qxc5 $2 Qxa1 16. Bd4 Bxd4 $19) 15... Bxb2) 14. Bxc5 $11 {[%emt 0:26:08]} Qc7 {[%emt 0:00:40]} 15. dxe6 $2 {[%emt 0:04:10] This costs White the game.} (15. d6 $11 Rxd6 {[%mdl 64] Pin} 16. Na3) 15... Bxe6 $19 {[%emt 0:03:13] Threatens to win with ...Nd7.} 16. Na3 {[%emt 0:07:10]} (16. Qc1 {was called for.}) 16... Rac8 {[%emt 0:01:02]} 17. e5 {[%emt 0:07:13]} Nd7 {[%emt 0:12:56]} (17... Qxc5 $2 18. Qxc5 Rxc5 19. exf6 Bxf6 20. b4 $19) 18. b4 {[%emt 0:02:45]} b6 {[%emt 0:01:35]} (18... Nxe5 19. Nxe5 Bxe5 20. Nb5 $17) 19. Nb5 {[%emt 0:00:41]} Qb8 {[%emt 0:00:19]} 20. Nd6 {[%emt 0:00:46]} bxc5 {[%emt 0:01:59]} 21. Nxc8 {[%emt 0:00:07]} Rxc8 {[%emt 0:00:05]} ({And not} 21... Qxc8 22. bxc5 Nxc5 23. Rad1 Rxd1 24. Rxd1 $17) 22. bxc5 {[%emt 0:00:11]} Rxc5 {[%emt 0:00:15]} 23. Qa4 {[%emt 0:00:31]} Nxe5 {[%emt 0:02:01]} ({Inferior is} 23... Bxe5 24. Rab1 Qc7 25. Nxe5 Rxe5 26. Rxe5 Nxe5 27. Qd4 $17) 24. Nxe5 {[%emt 0:00:53]} Bxe5 {[%emt 0:00:11] A strong pair of Bishops.} (24... Rxe5 $2 {loses.} 25. Rad1 $19) 25. Rac1 {[%emt 0:01:30]} Qb6 {[%emt 0:04:04]} 26. Rxc5 {[%emt 0:05:14]} Qxc5 {[%emt 0:00:04]} 27. Qe4 {[%emt 0:02:36]} Bd4 {[%emt 0:01:23]} 28. Qe2 {[%emt 0:01:58]} Kg7 {[%emt 0:01:33]} 29. Rd1 {[%emt 0:00:27]} a5 {[%emt 0:01:51][%cal Ba7a5,Ba5a4][%mdl 32] Black is clearly winning.} 30. Qd2 {[%emt 0:02:21]} Bf6 {[%emt 0:00:39] Strongly threatening ...Qa3.} 31. Rb1 {[%emt 0:02:59]} a4 {[%emt 0:00:47] Weighted Error Value: White=0.45/Black=0.12 (very precise)} 0-1

[Event "SixDays Budapest January-GM 2023"]
[Site "Budapest"]
[Date "2023.01.24"]
[Round "3.3"]
[White "Ghazarian, Kirk"]
[Black "Berczes, David"]
[Result "1-0"]
[ECO "E49"]
[WhiteElo "2466"]
[BlackElo "2436"]
[Annotator "TA"]
[PlyCount "101"]
[EventDate "2023.01.23"]
[EventType "tourn"]
[EventCountry "HUN"]
[SourceTitle "playchess.com"]
[Source "ChessBase"]
[SourceQuality "1"]
[TimeControl "5400+30"]

{[%evp 15,101,0,0,0,0,0,14,0,0,-7,0,-14,0,-46,-40,-47,-35,-50,-14,-10,-18,-15,-13,-31,-13,-15,-13,-20,0,0,0,0,0,0,0,-60,-72,-73,6,0,10,0,0,0,91,93,113,0,161,147,158,149,315,123,132,118,187,191,158,6,204,199,200,183,559,546,885,804,796,351,325,257,843,732,779,756,748,683,29951,29948,29977,29976,29979,29980,29982,29983,29986,29987]} 1. d4 {[%emt 0:00:01] Wells,Peter K} Nf6 {[%emt 0:02:49]} 2. c4 {[%emt 0:00:09]} e6 {[%emt 0:00:04]} 3. Nc3 {[%emt 0:00:38]} Bb4 {[%emt 0:00:19]} 4. e3 {[%emt 0:00:09]} O-O {[%emt 0:17:32]} 5. Bd3 {[%emt 0:00:16]} d5 {[%emt 0:02:24]} 6. a3 {[%emt 0:00:07]} Bxc3+ {[%emt 0:17:36]} 7. bxc3 {[%emt 0:00:03]} dxc4 {[%emt 0:06:37]} 8. Bxc4 {[%emt 0:00:10]} c5 {[%emt 0:00:04]} 9. Bd3 {[%emt 0:00:56] E49: Nimzo-Indian: Rubinstein: 5 Bd3 d5 6 a3 Bxc3+ 7 bxc3.} (9. dxc5 Qxd1+ 10. Kxd1 Bd7 $17) 9... Qc7 {[%emt 0:25:10]} 10. Bb2 {[%emt 0:00:22]} b6 {[%emt 0:06:22] 10...e5 is a critical line.} 11. e4 {[%emt 0:14:47] [#] The position is equal.} Ba6 $146 {[%emt 0:03:30]} ({Predecessor:} 11... e5 12. d5 c4 13. Bc2 Nbd7 14. Ne2 Nc5 15. Ng3 b5 16. O-O a5 17. Bc1 Ra6 {½-½ Milov,V (2626)-Polgar,J (2656) Najdorf Memorial 11th 2000 (2)}) 12. Bxa6 {[%emt 0:06:57]} Nxa6 {[%emt 0:00:05][%cal Bb8a6,Ba6c5,Bc5a4][%mdl 32]} 13. Qe2 {[%emt 0:00:13]} (13. Qd3 $5 {[%cal Rd3a6]} b5 14. Ne2 $11) 13... b5 {[%emt 0:05:40]} 14. f3 {[%emt 0:19:20]} (14. Nf3 $11 {was preferrable.}) 14... Qa5 $15 {[%emt 0:03:21]} 15. Kf2 {[%emt 0:06:57]} Rfd8 {[%emt 0:02:20]} 16. Nh3 {[%emt 0:07:00]} cxd4 {[%emt 0:00:05]} 17. cxd4 {[%emt 0:00:05] [#]} Nc5 $1 {[%emt 0:00:24]} 18. Rhd1 {[%emt 0:06:09]} (18. dxc5 Rd2 19. Nf4 Rxe2+ 20. Nxe2 Nd7 $17) 18... Na4 {[%emt 0:01:55]} 19. Rac1 {[%emt 0:01:47]} Rac8 {[%emt 0:02:29]} 20. Nf4 {[%emt 0:14:11]} Qb6 {[%emt 0:00:26]} 21. Kf1 {[%emt 0:03:32]} Nxb2 {[%emt 0:01:15]} 22. Qxb2 {[%emt 0:00:04]} h6 {[%emt 0:00:31]} 23. Ne2 {[%emt 0:00:35]} Ne8 {[%emt 0:00:30]} 24. Rxc8 {[%emt 0:13:05]} Rxc8 {[%emt 0:00:02]} 25. Rc1 {[%emt 0:00:18]} (25. d5 $11) 25... Rxc1+ {[%emt 0:00:44]} 26. Qxc1 {[%emt 0:00:06][%mdl 4096] Endgame KQN-KQN} Qc7 {[%emt 0:00:42]} ({Black should play} 26... Nd6 $17) 27. Qc5 {[%emt 0:02:02]} (27. Qxc7 {simplifies} Nxc7 28. Ke1 Kf8 29. Kd2) 27... a6 {[%emt 0:00:32]} 28. Kf2 {[%emt 0:01:27]} (28. Qxc7 {simplifies} Nxc7 29. Ke1 Kf8 30. Kd2) 28... Qd6 {[%emt 0:00:18]} 29. e5 {[%emt 0:02:05]} Qxc5 {[%emt 0:00:20]} (29... Qb8 $11 {remains equal.}) 30. dxc5 $11 {[%emt 0:00:01][%cal Bd4c5,Bc5c6,Bc6c7][%mdl 32] Black must now prevent Ke3. KN-KN} Nc7 {[%emt 0:00:16]} 31. Ke3 {[%emt 0:01:17]} (31. c6 $1 $16) 31... Kf8 $2 {[%emt 0:00:49]} (31... Nd5+ $11 {and Black has nothing to worry.} 32. Kd3 Ne7) 32. Kd4 {[%emt 0:00:45] aiming for c6.} Ke7 {[%emt 0:00:47]} 33. c6 {[%emt 0:00:50] Strongly threatening Nc3.} Nd5 {[%emt 0:00:05] [#]} (33... Kd8 $16) 34. Kc5 $2 {[%emt 0:00:33]} (34. Nc3 $1 $18 {[%cal Rc3d5]} Nc7 35. Kc5) 34... Kd8 $16 {[%emt 0:00:27]} 35. Kd6 {[%emt 0:00:31]} Ne3 {[%emt 0:00:55] [#]} (35... g5 $16) 36. c7+ $1 $18 {[%emt 0:00:20]} Kc8 {[%emt 0:00:00]} 37. f4 $2 {[%emt 0:00:35]} (37. Ke7 $16) 37... Nd5 $2 {[%emt 0:01:02]} (37... Nxg2 38. Ke7 g5 39. fxg5 hxg5 40. Kxf7 $14) (37... Nf5+ $11 {and Black is okay.} 38. Kc6 Ne7+ 39. Kb6 Nd5+ 40. Kxa6 b4 41. axb4 Nxb4+ 42. Kb5 Nd5) 38. g3 {[%emt 0:00:33][%cal Bg2g3,Bg3g4,Bg4f5][%mdl 32]} Nxc7 {[%emt 0:00:31]} 39. Ke7 {[%emt 0:00:13]} a5 $2 {[%emt 0:00:22]} (39... f5 {is more resistant.} 40. exf6 gxf6 41. Kxf6 Kd7) 40. Kxf7 {[%emt 0:00:17][%cal Og3g4]} Kd7 {[%emt 0:00:35]} 41. g4 {[%emt 0:00:57]} Kc6 {[%emt 0:00:22]} 42. f5 {[%emt 0:00:33]} (42. Kxg7 $142 Kd5 43. Kxh6) 42... exf5 {[%emt 0:00:34]} 43. gxf5 {[%emt 0:00:09][%cal Oe5e6] Hoping for e6!} Kd5 {[%emt 0:00:14]} (43... b4) 44. e6 {[%emt 0:00:37][%cal Be5e6,Be6e7][%mdl 32]} (44. Kxg7 Kxe5 45. Kxh6 Kxf5 $11) 44... Ke5 {[%emt 0:00:12]} 45. e7 {[%emt 0:00:06] Nc3 would be deadly.} b4 {[%emt 0:00:29] Prevents Nc3.} 46. a4 {[%emt 0:00:35]} (46. e8=R+ Nxe8 47. axb4 Nd6+ 48. Kxg7 Nxf5+ 49. Kg6 axb4 $17) (46. e8=N bxa3 47. Nc3 (47. Nxc7 $2 a2 $19) 47... Nxe8 $19) 46... b3 {[%emt 0:01:00]} 47. Nc1 {[%emt 0:00:17] White mates.} (47. e8=R+ Nxe8 48. Nc1 Nd6+ 49. Kg6 b2 50. Nd3+ Kd4 51. Nxb2 Kc3 52. Nd1+ Kb3 $17) 47... b2 {[%emt 0:00:43]} 48. Nd3+ {[%emt 0:00:01]} (48. e8=R+ $2 Kd6 49. Rd8+ Kc6 $19) 48... Kxf5 {[%emt 0:00:11]} 49. Nxb2 {[%emt 0:00:06]} (49. e8=R $2 b1=Q 50. Re5+ Kg4 $19) 49... g5 {[%emt 0:00:28]} 50. Nc4 {[%emt 0:00:06]} ({And not} 50. e8=R Nxe8 51. Kxe8 h5 $11) 50... g4 {[%emt 0:00:34]} 51. Nd6+ {[%emt 0:00:17] Weighted Error Value: White=0.35/Black=0.51} ({Weaker is} 51. e8=R Nxe8 52. Ne3+ (52. Kxe8 h5 $11) 52... Kf4 53. Ng2+ Kf3 54. Nh4+ Kf2 $11) 1-0

[Event "SixDays Budapest January-GM 2023"]
[Site "Budapest"]
[Date "2023.01.24"]
[Round "3.4"]
[White "Kozak, Adam"]
[Black "Olsen, Filip Boe"]
[Result "1-0"]
[ECO "A18"]
[WhiteElo "2558"]
[BlackElo "2428"]
[Annotator "TA"]
[PlyCount "109"]
[EventDate "2023.01.23"]
[EventType "tourn"]
[EventCountry "HUN"]
[SourceTitle "playchess.com"]
[Source "ChessBase"]
[SourceQuality "1"]
[TimeControl "5400+30"]

{[%evp 10,109,36,6,16,8,8,14,22,11,21,16,26,21,12,20,15,15,15,15,15,16,20,22,20,17,17,25,15,14,12,12,12,12,12,7,8,10,12,6,14,0,18,18,84,94,104,104,104,104,148,36,72,70,62,62,68,89,71,133,136,88,93,93,260,253,265,263,270,264,241,243,229,167,160,142,1032,1213,1354,1076,1440,1181,12070,9725,5841,5359,6177,5042,29970,29971,29975,29977,29975,2136,29983,29984,29984,29985,29985,29986,29989,29989]} 1. c4 {[%emt 0:00:13]} Nf6 {[%emt 0:02:03]} 2. Nc3 {[%emt 0:00:05]} e6 {[%emt 0:00:15]} 3. e4 {[%emt 0:00:10]} d5 {[%emt 0:00:10]} 4. cxd5 {[%emt 0:00:07]} exd5 {[%emt 0:00:12]} 5. e5 {[%emt 0:00:05]} Ne4 {[%emt 0:00:15]} 6. Nf3 {[%emt 0:00:26]} Bf5 {[%emt 0:00:30] A18: English Opening: Flohr-Mikenas System (1 c4 Nf6 2 Nc3 e6 3 e4).} 7. a3 $5 {[%emt 0:01:12][%mdl 4] A promising side line.} Be7 {[%emt 0:06:53]} 8. d4 {[%emt 0:00:31]} O-O {[%emt 0:00:50] The position is equal.} 9. Bd3 {[%emt 0:01:00]} c5 {[%emt 0:04:37]} 10. O-O {[%emt 0:05:30]} Nc6 {[%emt 0:02:10]} 11. dxc5 {[%emt 0:00:09]} Bxc5 {[%emt 0:10:42]} 12. Qc2 {[%emt 0:00:21][%cal Rc3e4] [#]} Rc8 $146 {[%emt 0:15:14]} ({Predecessor:} 12... Nd4 13. Nxd4 Bxd4 14. Nxe4 dxe4 15. Bxe4 Rc8 16. Qe2 Bxe4 17. Qxe4 Qb6 18. Rb1 Qg6 {½-½ Eljanov,P (2720)-Wojtaszek,R (2737) Bundesliga 1718 2017 (5.1)}) 13. Nxe4 {[%emt 0:03:34]} dxe4 {[%emt 0:01:13]} 14. Bxe4 {[%emt 0:00:13]} Nd4 {[%emt 0:01:54]} 15. Qd3 {[%emt 0:09:49]} Nxf3+ {[%emt 0:07:09]} 16. Qxf3 {[%emt 0:00:10]} Bxe4 {[%emt 0:00:06]} 17. Qxe4 {[%emt 0:00:07]} Qd4 {[%emt 0:00:40] Prevents Be3.} 18. Qxb7 {[%emt 0:04:29]} (18. Qxd4 {simplifies} Bxd4 19. Be3 Bxe5 20. Bxa7 Bxb2 21. Ra2) 18... Qxe5 {[%emt 0:01:37]} 19. Bd2 {[%emt 0:01:42]} Rb8 {[%emt 0:06:21]} 20. Bc3 {[%emt 0:00:27] Qxa7 is the strong threat.} Qxh2+ {[%emt 0:04:17]} (20... Qxc3 $2 21. Qxb8 Qf6 22. Qc7 $18) 21. Kxh2 {[%emt 0:00:09]} Rxb7 {[%emt 0:00:06]} 22. Rad1 {[%emt 0:00:04]} Rc8 {[%emt 0:06:12]} 23. Rd3 {[%emt 0:11:54]} f6 {[%emt 0:04:10]} 24. Kg1 {[%emt 0:06:53]} Rb3 {[%emt 0:03:53][%cal Oc5a3]} 25. Rc1 {[%emt 0:01:17]} Bb6 {[%emt 0:02:19]} 26. Rd7 {[%emt 0:09:29]} Re8 {[%emt 0:05:27]} (26... Rb5 $11) 27. a4 $1 $16 {[%emt 0:04:13]} Rd8 {[%emt 0:06:35]} 28. Rcd1 {[%emt 0:02:45] White is more active.} Rxd7 {[%emt 0:01:21]} 29. Rxd7 {[%emt 0:00:02][%mdl 4096] Endgame KRB-KRB} Bc5 {[%emt 0:00:55]} 30. Kf1 {[%emt 0:24:23]} ({Better is} 30. Rc7 $16 Bd6 31. Rxa7) 30... Rb8 {[%emt 0:03:17]} 31. a5 {[%emt 0:04:34]} a6 {[%emt 0:01:51]} 32. Ke2 {[%emt 0:01:04]} Re8+ {[%emt 0:00:30]} 33. Kf3 {[%emt 0:00:40]} Rb8 {[%emt 0:00:12]} 34. Rc7 {[%emt 0:06:37]} Bb4 {[%emt 0:00:13] [#]} 35. Rc6 $1 {[%emt 0:00:59] Black must now prevent Rb6.} Bxc3 {[%emt 0:00:35]} 36. bxc3 {[%emt 0:00:01] KR-KR} Rb5 $2 {[%emt 0:00:20]} (36... Kf7 $16) 37. Rxa6 $18 {[%emt 0:00:08]} Rc5 {[%emt 0:00:04] [#]} 38. Ke4 $1 {[%emt 0:00:39]} Rxc3 {[%emt 0:00:05]} 39. Rb6 {[%emt 0:01:02] aiming for a6.} Ra3 {[%emt 0:00:56]} 40. a6 {[%emt 0:00:01] And now Kd5 would win.} Ra5 {[%emt 0:01:24]} 41. Rb8+ {[%emt 0:03:12]} Kf7 {[%emt 0:00:10]} 42. Rb7+ {[%emt 0:00:01]} Kg6 $2 {[%emt 0:01:41][%mdl 8192] This move loses the game for Black.} (42... Ke6 $16) 43. a7 {[%emt 0:00:01]} h5 {[%emt 0:00:19]} 44. Kd4 {[%emt 0:00:32]} Kh6 {[%emt 0:00:26]} 45. Kc4 {[%emt 0:00:10]} g5 {[%emt 0:00:33]} 46. Kb4 {[%emt 0:00:22]} Ra1 {[%emt 0:00:12]} 47. Kb5 {[%emt 0:00:20]} g4 {[%emt 0:00:23]} 48. g3 {[%emt 0:02:02][%cal Bg2g3,Bg3h4][%mdl 32] Threatening mate with Kb6.} h4 {[%emt 0:00:44]} 49. Kb6 {[%emt 0:00:34]} f5 {[%emt 0:02:09]} 50. Rb8 {[%emt 0:00:27]} f4 {[%emt 0:00:05]} 51. Rh8+ {[%emt 0:00:29]} ({Worse is} 51. a8=B Rb1+ 52. Kc7 Rxb8 53. Kxb8 fxg3 54. fxg3 hxg3 $11) (51. gxh4 $142 f3 52. a8=Q (52. a8=B g3 $11) 52... Rxa8 53. Rxa8 Kg6 54. Ra5 Kg7 55. Rg5+ Kf7 56. Kc5) 51... Kg5 {[%emt 0:00:37]} 52. gxh4+ {[%emt 0:00:33] White mates.} (52. a8=B fxg3 53. fxg3 hxg3 $11) 52... Kg6 {[%emt 0:00:55]} 53. a8=Q {[%emt 0:00:19]} ({Weaker is} 53. a8=B Rf1 $14) 53... Rxa8 {[%emt 0:00:04]} 54. Rxa8 {[%emt 0:00:02]} f3 {[%emt 0:00:11]} 55. Ra5 {[%emt 0:00:07] Weighted Error Value: White=0.09 (flawless) /Black=0.41} 1-0

[Event "SixDays Budapest January-GM 2023"]
[Site "Budapest"]
[Date "2023.01.24"]
[Round "3.5"]
[White "Lucas, Arthur"]
[Black "Can, Isik"]
[Result "0-1"]
[ECO "B10"]
[WhiteElo "2412"]
[BlackElo "2488"]
[Annotator "TA"]
[PlyCount "84"]
[EventDate "2023.01.23"]
[EventType "tourn"]
[EventCountry "HUN"]
[SourceTitle "playchess.com"]
[Source "ChessBase"]
[SourceQuality "1"]
[TimeControl "5400+30"]

{[%evp 10,83,16,18,27,21,28,31,14,25,19,25,59,45,50,45,64,58,51,60,55,66,53,42,49,12,0,-58,-61,-169,0,-176,-154,-113,-112,-104,-116,-247,-293,-282,-284,-284,-281,-265,-187,-249,-252,-544,-672,-662,-662,-637,-620,-605,-605,-560,-554,-460,-438,-595,-588,-886,-879,-854,-836,-5105,-5097,-29995,-29996,-29996,-29997,-29997,-29998,-29998,-29999,-29999]} 1. e4 {[%emt 0:00:04]} c6 {[%emt 0:04:05]} 2. Nc3 {[%emt 0:00:39]} d5 {[%emt 0:00:05]} 3. Nf3 {[%emt 0:00:03][%cal Bg1f3,Bf3e5,Be5c6,Bc6d4,Bd4f5,Bf5d6][%mdl 32]} dxe4 {[%emt 0:00:05]} 4. Nxe4 {[%emt 0:00:04]} Nf6 {[%emt 0:00:05]} 5. Qe2 {[%emt 0:00:06]} Nxe4 {[%emt 0:00:04]} 6. Qxe4 {[%emt 0:00:04]} Nd7 {[%emt 0:00:04] B11: Caro-Kann: Two Knights Variation.} 7. Bc4 {[%emt 0:00:29] Strongly threatening Ng5.} Nf6 {[%emt 0:00:05] [#]} 8. Ne5 $1 {[%emt 0:00:10][%csl Ge5][%cal Rc4f7]} e6 {[%emt 0:00:04] White is slightly better.} 9. Qe2 {[%emt 0:00:35]} b5 {[%emt 0:00:21]} 10. Bd3 {[%emt 0:00:39]} (10. Nxc6 Qc7 11. Bd3 (11. Bxb5 a6 $17) 11... a6 $15) 10... Bd6 {[%emt 0:00:32]} 11. a4 {[%emt 0:00:17]} Qc7 {[%emt 0:00:21] [#]} 12. Nxc6 {[%emt 0:00:51][%mdl 64] Remove Defender} b4 {[%emt 0:00:06]} (12... Qxc6 $2 13. Bxb5 $18 (13. axb5 $2 Qxg2 14. Rf1 Bb7 $19) (13. axb5 $2 Qxg2 14. Rf1 Bxh2 $19)) (12... O-O 13. axb5) 13. Nd4 $1 {[%emt 0:00:14]} a6 {[%emt 0:00:12] Repels Nb5} 14. Nf5 $1 {[%emt 0:00:18]} Bb7 {[%emt 0:00:11]} 15. Nxd6+ {[%emt 0:03:41]} (15. Nxg7+ Kd7 16. Nh5 Nxh5 17. Qxh5 Bxg2 $15) 15... Qxd6 {[%emt 0:00:23]} 16. O-O {[%emt 0:01:40]} h5 {[%emt 0:00:04][%cal Ob4b3]} 17. f3 {[%emt 0:03:47] [#]} Ng4 $146 {[%emt 0:10:17][%mdl 2048] Prevents Qe3. Black fights for an advantage.} ({Predecessor:} 17... h4 18. Bc4 h3 19. g3 Qd4+ 20. Rf2 Rh5 21. c3 Qb6 22. d4 Rc8 23. Bd2 bxc3 24. bxc3 {1-0 Vokhidov,S (2568)-Samadov,R (2450) Speed Chess Q1 blitz 2022 (9)}) 18. fxg4 {[%emt 0:13:42]} (18. f4 $1 $11) 18... hxg4 $15 {[%emt 0:00:18]} 19. Qxg4 {[%emt 0:00:55]} (19. g3 $1 $15 Qc6 20. Qe4 Qxe4 21. Bxe4 Bxe4 22. Rf4 (22. d3 Bf3 $15) 22... Bxc2 23. Rxb4) 19... Qxh2+ $19 {[%emt 0:00:06]} 20. Kf2 {[%emt 0:00:03]} Rh4 $1 {[%emt 0:00:07]} 21. Qxg7 {[%emt 0:18:20] [#] Threatens to win with Ke1.} Bxg2 $1 {[%emt 0:00:10][%mdl 512] Black is more active.} 22. Qxg2 {[%emt 0:16:34]} (22. Qg8+ Ke7 23. Qg5+ (23. Qxg2 $2 {loses.} Rf4+ 24. Ke1 Qxg2 $19) 23... Kd6 24. Qxg2 (24. Rg1 {gets mated.} Rf4+) 24... Rf4+ 25. Ke1 Qxg2 $19) 22... Rf4+ {[%emt 0:00:12]} 23. Ke3 {[%emt 0:00:05] Now White is beyond hope.} (23. Ke1 $17 Qxg2 24. Rxf4) 23... Qxg2 {[%emt 0:00:43]} 24. Rxf4 {[%emt 0:00:36] [#]} Qg3+ $1 {[%emt 0:24:25]} 25. Rf3 {[%emt 0:01:18]} Qe1+ {[%emt 0:00:46]} 26. Be2 {[%emt 0:02:48]} Qg1+ {[%emt 0:02:46]} 27. Rf2 {[%emt 0:12:03] [#]} (27. Kd3 $142 Rd8+ 28. Kc4) 27... Rc8 $1 {[%emt 0:02:04]} 28. c4 {[%emt 0:04:27]} (28. Bxa6 Rc5 29. c3) 28... f5 {[%emt 0:20:41]} 29. Bf1 {[%emt 0:18:49]} Qg3+ {[%emt 0:00:51]} 30. Ke2 {[%emt 0:01:34]} Rxc4 {[%emt 0:00:02] ( -> ...Re4+)} 31. Rf3 {[%emt 0:00:21]} Re4+ {[%emt 0:09:39]} 32. Re3 {[%emt 0:00:04]} Qg4+ {[%emt 0:00:02]} 33. Kd3 {[%emt 0:01:04]} Rxe3+ {[%emt 0:06:48]} 34. Kxe3 {[%emt 0:00:23]} f4+ {[%emt 0:00:01][%cal Bf5f4,Bf4f3][%mdl 32]} 35. Ke4 {[%emt 0:00:41]} f3+ {[%emt 0:00:24]} 36. Ke5 {[%emt 0:00:25]} Qg3+ {[%emt 0:01:03]} 37. Kf6 {[%emt 0:00:26]} Qh4+ {[%emt 0:00:07]} 38. Kg6 {[%emt 0:00:33]} Qg4+ {[%emt 0:00:04] Black mates.} 39. Kf6 {[%emt 0:00:15]} Qf5+ {[%emt 0:00:04]} 40. Kg7 {[%emt 0:00:05]} Qg5+ {[%emt 0:00:04]} 41. Kh7 {[%emt 0:00:05]} Kf7 {[%emt 0:00:04][%csl Gf7][%cal Rg5g7]} 42. d3 {[%emt 0:00:13]} Qg7# {[%emt 0:00:05] Magnificent play by Can!   Weighted Error Value: White=0.55/Black=0.05 (flawless)} 0-1

[Event "SixDays Budapest January-GM 2023"]
[Site "Budapest"]
[Date "2023.01.25"]
[Round "4.1"]
[White "Pajeken, Jakob Leon"]
[Black "Can, Isik"]
[Result "1/2-1/2"]
[ECO "D02"]
[WhiteElo "2449"]
[BlackElo "2488"]
[Annotator "TA"]
[PlyCount "72"]
[EventDate "2023.01.23"]
[EventType "tourn"]
[EventCountry "HUN"]
[SourceTitle "playchess.com"]
[Source "ChessBase"]
[SourceQuality "1"]
[TimeControl "5400+30"]

{[%evp 9,72,-7,8,13,16,0,16,19,31,19,27,33,22,24,30,28,36,16,24,14,19,19,22,20,31,31,31,37,28,0,34,0,18,17,28,0,40,0,0,0,22,0,0,0,44,-23,-29,-55,-48,-28,-23,-18,-11,-15,-12,-11,-7,-4,-3,-33,0,0,0,0,0]} 1. Nf3 {[%emt 0:00:02]} d5 {[%emt 0:04:32]} 2. d4 {[%emt 0:00:05]} Nf6 {[%emt 0:00:04]} 3. c4 {[%emt 0:00:03]} c6 {[%emt 0:00:04]} 4. Qc2 {[%emt 0:00:02]} dxc4 {[%emt 0:00:05]} 5. Qxc4 {[%emt 0:00:02]} Bg4 {[%emt 0:00:28]} 6. Nc3 {[%emt 0:00:13] D23: Queen's Gambit Accepted: 3 Nf3 Nf6 sidelines.} Nbd7 {[%emt 0:00:24]} 7. Bf4 $1 {[%emt 0:00:10][%mdl 4] now scores much better than the old 7.e4.} Nb6 {[%emt 0:01:01]} 8. Qd3 {[%emt 0:00:04]} Nbd5 {[%emt 0:00:03] 8...Bxf3 is not played anymore.} 9. Nxd5 {[%emt 0:00:04]} Qxd5 {[%emt 0:00:03]} 10. Nd2 {[%emt 0:00:10]} Bf5 {[%emt 0:09:06]} 11. Qc3 {[%emt 0:00:04]} Qd7 {[%emt 0:08:43]} 12. Be5 {[%emt 0:00:05] [#]} e6 $146 {[%emt 0:00:21]} ({Predecessor:} 12... h5 13. h3 e6 14. Rd1 h4 15. e3 Ne4 16. Nxe4 Bxe4 17. f3 Bg6 18. Bc4 f6 19. Bh2 Bd6 20. O-O Bxh2+ 21. Kxh2 {½-½ Mamrukov,D (2247)-Shwimmer,P (2387) FICGS class M 000011 email 2013 (1)}) 13. e3 {[%emt 0:01:04]} Be7 {[%emt 0:07:08]} 14. Be2 {[%emt 0:01:55]} O-O {[%emt 0:01:59][%cal Oc6c5]} 15. O-O {[%emt 0:02:07]} a5 {[%emt 0:05:49]} 16. a3 {[%emt 0:10:21]} a4 {[%emt 0:00:34]} 17. Bf3 {[%emt 0:06:42]} Rfc8 {[%emt 0:07:29]} 18. e4 {[%emt 0:08:47]} Bg6 {[%emt 0:00:30]} 19. Rfe1 {[%emt 0:03:19]} Ra6 {[%emt 0:11:01]} 20. h4 {[%emt 0:06:21]} h6 {[%emt 0:00:53]} 21. Rad1 {[%emt 0:06:28]} b5 {[%emt 0:03:42]} 22. g3 {[%emt 0:14:35]} Qb7 {[%emt 0:07:41]} 23. Qe3 Nd7 {[%emt 0:01:44]} 24. Bf4 {[%emt 0:04:53]} Qa7 25. h5 {[%emt 0:07:53]} Bh7 {[%emt 0:01:33]} 26. e5 {[%emt 0:01:41]} c5 {[%emt 0:04:13]} (26... Nb6 $5 {[%cal Rb6d5]}) 27. Rc1 {[%emt 0:02:28]} (27. d5 $14) 27... Rd8 $11 {[%emt 0:00:28]} 28. d5 {[%emt 0:05:02]} exd5 {[%emt 0:00:13]} 29. Bxd5 {[%emt 0:00:05]} Nf8 {[%emt 0:00:57]} 30. Qf3 {[%emt 0:01:06]} Qd7 {[%emt 0:03:59]} 31. Bb7 {[%emt 0:03:52]} Rb6 {[%emt 0:00:34]} 32. Be4 {[%emt 0:00:05]} Ne6 {[%emt 0:00:54] aiming for ...Nxf4.} 33. Bxh7+ {[%emt 0:00:41]} Kxh7 {[%emt 0:00:02]} 34. Be3 {[%emt 0:00:57]} Ng5 {[%emt 0:03:25]} 35. Bxg5 {[%emt 0:02:45][%mdl 64] [#] Remove Defender} Bxg5 {[%emt 0:00:03]} 36. Rcd1 {[%emt 0:00:23] Ne4 would be deadly.} Bxd2 {[%emt 0:00:26] Weighted Error Value: White=0.10 (very precise) /Black=0.11 (very precise)} 1/2-1/2